Cogmind - Beta 14 @@@ ROGUE MODE // 2025.05.05 @ 19:33:02 Player: gallo Result: Destroyed by H-55 Commando with Gauss Rifle Performance ------------- Evolutions (2) 1000 Regions Visited (3) 600 Robots Destroyed (65) 325 Value Destroyed (1907) 1907 Prototype IDs (3) 60 Alien Tech Used (0) 0 Bonus (0) 0 TOTAL SCORE: 3892 Bonus ------- None Cogmind --------- Core Integrity 0/550 Matter 280/300 Energy 160/160 System Corruption 0% Temperature Cool (0) Movement Walking (113) Location -8/Materials Parts ------- > --- POWER (2) -------- Light Nuclear Core > --- PROPULSION (3) --- Aluminum Leg Titanium Leg VSS Leg > --- UTILITY (3) ------ Improved Heat Sink Large Storage Unit Improved Sensor Array > --- WEAPON (3) ------- Particle Gun Heavy Particle Gun Heavy Hammer > --- INVENTORY (15) --- Aluminum Leg Aluminum Leg Improved Heat Sink Structural Scanner Trap Scanner Visual Processing Unit Signal Interpreter Melee Analysis Suite Heavy Armor Plating Improved EM Shotgun Gauss Rifle Improved Datajack Improved Datajack Mining Laser Peak State ------------ > --- POWER ------------ Light Nuclear Core Light Nuclear Core > --- PROPULSION ------- Carbon-fiber Leg Carbon-fiber Leg Carbon-fiber Leg > --- UTILITY ---------- Improved Heat Sink Large Storage Unit Improved Terrain Scanner > --- WEAPON ----------- Pulse Rifle Particle Cannon Heavy Hammer > --- INVENTORY -------- Light Nuclear Core Carbon-fiber Leg Small Storage Unit Structural Scanner Trap Scanner Signal Interpreter Seismic Detector Improved Light Armor Plating Pulse Rifle Mining Laser [Rating: 31] Favorites ----------- Power Light Nuclear Core Engine Light Ion Engine Power Core Light Nuclear Core Propulsion Aluminum Leg Leg Aluminum Leg Utility Large Storage Unit Device Improved Heat Sink Storage Large Storage Unit Protection Improved Light Armor Plating Weapon Heavy Hammer Energy Gun EM Pulse Gun Energy Cannon Particle Cannon Ballistic Gun High-powered Shotgun Special Weapon Mining Laser Impact Weapon Heavy Hammer Special Melee Weapon Improved Datajack Build | -11 -10 -9 -8 ------- Run | Yrd Mat Mat Mat Slots Evolved 4 | . . 2 2 Power 1 | . . . 1 Propulsion 1 | . . 1 . Utility 1 | . . . 1 Weapon 1 | . . 1 . Parts Attached 75 | 9 5 18 43 Power 12 | 1 1 2 8 Engine 3 | 1 1 1 . Core 9 | . . 1 8 Reactor . | . . . . Propulsion 24 | 2 1 6 15 Treads . | . . . . Leg 24 | 2 1 6 15 Wheel . | . . . . Hover . | . . . . Flight . | . . . . Utility 16 | 2 2 2 10 Device 12 | 1 2 2 7 Storage 2 | 1 . . 1 Processor . | . . . . Hackware . | . . . . Protection 2 | . . . 2 Artifact . | . . . . Weapon 23 | 4 1 8 10 Energy Gun 9 | 2 1 3 3 Energy Cannon 2 | . . 1 1 Ballistic Gun 6 | 1 . 1 4 Ballistic Cannon . | . . . . Launcher . | . . . . Special Weapon 2 | 1 . 1 . Impact Weapon 3 | . . 2 1 Slashing Weapon . | . . . . Piercing Weapon . | . . . . Special Melee Weapon 1 | . . . 1 Unidentified Prototypes 1 | . . . 1 Parts Lost 19 | . 1 2 16 Power 7 | . 1 1 5 Propulsion 7 | . . . 7 Utility 2 | . . 1 1 Weapon 3 | . . . 3 Highest Loss Streak 8 | . 1 1 8 To Critical Strikes 1 | . . . 1 Average Slot Usage (%) 94 | . 99 97 92 Engine 3 | . 13 6 . Core 9 | . . 3 14 Leg 27 | . 28 33 24 Device 14 | . 14 10 16 Storage 10 | . 14 11 9 Energy Gun 12 | . 14 17 9 Energy Cannon 1 | . . 4 1 Ballistic Gun 7 | . 13 . 7 Impact Weapon 6 | . . 9 6 Peak Build Rating 31 | 9 10 23 31 Average Rating 20 | 7 9 15 27 On Entrance 10 | . 9 10 23 Naked Turns . | . . . . Heaviest Build 46 | 13 13 22 46 Greatest Support 45 | 20 20 45 45 Greatest Overweight (x) 9 | . . . 9 Average Overweight (x) . | . . . . Largest Inventory Capacity 15 | 8 8 8 15 Average Capacity 11 | 7 8 8 14 Most Carried 15 | 7 8 8 15 Average Carried 10 | 4 7 7 12 Final Capacity 15 | 8 8 8 15 Final Carried 15 | 7 8 8 15 Class Distribution -------------------- 57% | Mutant 31% | Scavenger-Mutant 4% | Tank 3% | Scavenger-Skirmisher Dominant Class ---------------- Mutant | -10/Materials Mutant | -9/Materials Scavenger-Mutant | -8/Materials Resources | -11 -10 -9 -8 ----------- Run | Yrd Mat Mat Mat Matter Collected 1511 | 311 168 186 846 Remotely . | . . . . Salvage Created 2328 | 194 523 412 1199 Parts 114 | 23 30 21 40 Haulers Intercepted . | . . . . Recyclers Shooed 3 | . 3 . . Parts Field Recycled . | . . . . Retrieved Matter . | . . . . Parts Self-Destructed . | . . . . Prevented . | . . . . Kills | -11 -10 -9 -8 ------- Run | Yrd Mat Mat Mat Combat Hostiles Destroyed 44 | . 10 8 26 Melee 5 | . . 2 3 Guns 30 | . 8 3 19 Cannons 3 | . . 2 1 AOE 2 | . 2 . . Classes Destroyed 10 | 3 3 3 1 Worker 6 | 2 2 . 2 Builder 2 | . . 1 1 Tunneler 7 | 6 . . 1 Recycler 3 | 1 1 . 1 Watcher 5 | . 2 2 1 Swarmer 5 | . 3 2 . Grunt 32 | . 7 2 23 Brawler 1 | . . 1 . Sentry 4 | . . 3 1 Hunter 2 | . . . 2 Best Kill Streak 5 | 4 5 4 5 Combat Bots Only 5 | . 3 3 5 Max Kills in Single Turn 2 | 1 2 1 2 Gunslinging 1 | . . . 1 Exploded 1 | . 1 . . Melee 1 | . . 1 1 Uniques/NPCs Destroyed . | . . . . Combat | -11 -10 -9 -8 -------- Run | Yrd Mat Mat Mat Hostile Shots Fired 359 | . 38 35 286 Missed 99 | . 13 8 78 Damage Taken 3644 | . 290 343 3011 Core 698 | . 74 73 551 Absorbed by Shields . | . . . . Regen/Repaired (Parts) 57 | . . . 57 Core Remaining (%) 83 | 100 70 81 . Volleys Fired 165 | 23 36 19 87 Largest 3 | 2 2 3 3 Hottest 163 | 60 60 163 131 Shots Fired 327 | 46 72 41 168 Gun 304 | 46 72 32 154 Cannon 22 | . . 8 14 Launcher . | . . . . Special 1 | . . 1 . Kinetic 148 | 23 36 5 84 Thermal 111 | . . 27 84 Explosive . | . . . . Electromagnetic 68 | 23 36 9 . Robot Hit Streak 12 | 8 9 5 12 Robot Miss Streak 7 | 3 5 3 7 Penetration Max . | . . . . Secondary Targets 6 | . 2 1 3 Max Gunslinging Chain 2 | . 1 1 2 Shots Hit Robots 241 | 22 42 29 148 Core Hits 99 | 10 23 11 55 Critical Kills 3 | . 1 1 1 Critical Parts Destroyed 4 | . . 1 3 Critical Strikes 12 | . 1 5 6 Burn 5 | . . 3 2 Destroy 2 | . 1 . 1 Smash 5 | . . 2 3 Melee Attacks 50 | . . 11 39 Impact 42 | . . 11 31 Slashing . | . . . . Piercing . | . . . . Sneak Attacks 9 | . . 1 8 Combat Hostiles . | . . . . Follow-up Attacks . | . . . . Damage Inflicted 4808 | 324 718 522 3244 Guns 3046 | 293 552 243 1958 Cannons 308 | . . 82 226 Explosions 151 | . 151 . . Melee 1257 | . . 197 1060 Ramming 46 | 31 15 . . Kinetic 1614 | 174 252 25 1163 Thermal 1399 | . 151 227 1021 Explosive . | . . . . Electromagnetic 492 | 119 300 73 . Impact 1257 | . . 197 1060 Slashing . | . . . . Piercing . | . . . . Highest Corruption 4 | . . 4 . Average Corruption 3 | . . 3 . Corruption Purged . | . . . . Corruption Blocked . | . . . . Effects 8 | . . 8 . Message Errors 2 | . . 2 . Matter Fused 2 | . . 2 . Heat Flow Errors 1 | . . 1 . Energy Discharges 1 | . . 1 . Data Loss (minor) 1 | . . 1 . Data Loss (major) 1 | . . 1 . Overload Shots . | . . . . Overflow Damage 485 | . 17 33 435 Projectiles . | . . . . Explosions 17 | . 17 . . Melee 468 | . . 33 435 Knockbacks 7 | 1 . 1 5 Impact 7 | 1 . 1 5 Kinetic . | . . . . Secondary . | . . . . Self-Inflicted Damage 7 | . 7 . . Shots 1 | . 1 . . Rammed . | . . . . Targets Rammed 15 | 10 5 . . Kicked 15 | 10 5 . . Crushed . | . . . . Highest Temperature 542 | . 30 190 542 Average Temperature 94 | . 13 63 122 Received Heat Transfer 1494 | . 120 87 1287 Effects 15 | . . . 15 Shutdowns 4 | . . . 4 Interference 5 | . . . 5 Short Circuit 2 | . . . 2 Damage (minor) 1 | . . . 1 Damage (major) 3 | . . . 3 Siege Activations . | . . . . Robots Corrupted 8 | . . 2 6 Combat Hostiles 4 | . . 1 3 Parts Fried 9 | . 1 2 6 Impact Corruptions 19 | . . 2 17 Robots Melted . | . . . . Combat Hostiles . | . . . . Parts Melted 13 | . . 4 9 Heat Transferred 3408 | . 300 777 2331 Parts Sabotaged . | . . . . Parts Stolen . | . . . . Parts Stripped . | . . . . Power Chain Reactions 3 | . 3 . . Alert | -11 -10 -9 -8 ------- Run | Yrd Mat Mat Mat Peak Influence 338 | 45 338 329 265 Initial 85 | . 29 81 85 Average 127 | 17 206 174 109 Maximum Alert Level 1 | . 1 1 1 Low Security (%) 78 | 100 41 62 89 Level 1 21 | . 58 37 10 Level 2 . | . . . . Level 3 . | . . . . Level 4 . | . . . . Level 5 . | . . . . High Security . | . . . . Max Security . | . . . . Squads Dispatched 10 | . 1 1 8 Investigation 6 | . 1 1 4 Extermination . | . . . . Reinforcement 4 | . . . 4 Assault . | . . . . Garrison . | . . . . Intercept . | . . . . Searches Triggered . | . . . . Construction Impeded . | . . . . Haulers Reinforced . | . . . . Active Scanning Responses . | . . . . Cargo Convoy Interrupts . | . . . . Stealth | -11 -10 -9 -8 --------- Run | Yrd Mat Mat Mat Distress Signals 4 | . . 1 3 Communications Jammed . | . . . . Distress Signals . | . . . . Times Spotted 66 | . 14 14 38 Peak Tracking Total 6 | . 3 3 6 Tactical Retreats 5 | . 2 2 1 Traps | -11 -10 -9 -8 ------- Run | Yrd Mat Mat Mat Traps Triggered 2 | . 1 . 1 Indirectly . | . . . . Trap Hack Attempts . | . . . . Triggered . | . . . . Disarmed 4 | . 4 . . Reprogrammed . | . . . . Reused . | . . . . Traps Extracted . | . . . . Installed . | . . . . Triggered . | . . . . Machines | -11 -10 -9 -8 ---------- Run | Yrd Mat Mat Mat Machines Disabled 5 | . 2 . 3 Max in Single Turn 1 | . 1 . 1 Machines Repaired . | . . . . Machines Dismantled . | . . . . Machines Sabotaged . | . . . . Overloaded Fab Kills . | . . . . Hacking | -11 -10 -9 -8 --------- Run | Yrd Mat Mat Mat Machines Accessed 11 | . 3 3 5 Terminals 9 | . 3 3 3 Fabricators . | . . . . Repair Stations 1 | . . . 1 Recycling Units 1 | . . . 1 Scanalyzers . | . . . . Garrison Access . | . . . . Total Hacks 41 | . 13 10 18 Successful 17 | . 7 2 8 Failed 24 | . 6 8 10 Catastrophic 6 | . 2 3 1 Database Lockouts . | . . . . Manual 17 | . 10 3 4 Terminals 32 | . 13 10 9 Fabricators . | . . . . Repair Stations 5 | . . . 5 Recycling Units 4 | . . . 4 Scanalyzers . | . . . . Garrison Access . | . . . . Terminal Hacks 11 | . 7 2 2 Record 2 | . 2 . . Prototype ID Bank 1 | . 1 . . Emergency Access Points 1 | . 1 . . Unreport Threat 2 | . . . 2 Disarm Traps 1 | . 1 . . Zone Layout 4 | . 2 2 . Fabricator Hacks . | . . . . Repair Station Hacks 4 | . . . 4 Scan Component 2 | . . . 2 Repair 2 | . . . 2 Recycling Unit Hacks 2 | . . . 2 Report Inventory 1 | . . . 1 Retrieve Components 1 | . . . 1 Scanalyzer . | . . . . Garrison Access Hacks . | . . . . Unauthorized Hacks . | . . . . Terminals . | . . . . Fabricators . | . . . . Repair Stations . | . . . . Recycling Units . | . . . . Scanalyzers . | . . . . Garrison Access . | . . . . Data Cores Recovered . | . . . . Used . | . . . . Hacking Detections 9 | . 2 3 4 Full Trace Events 8 | . 1 3 4 Feedback Events 1 | . . 1 . Corruption 1 | . . 1 . Feedback Blocked . | . . . . Robot Schematics Acquired . | . . . . Robots Built . | . . . . Authchips . | . . . . Time . | . . . . Total Robot Build Rating . | . . . . Part Schematics Acquired . | . . . . Parts Built . | . . . . Authchips . | . . . . Time . | . . . . Total Part Build Rating . | . . . . Parts Repaired 2 | . . . 2 Time 76 | . . . 76 Parts Recycled . | . . . . Recycled Matter . | . . . . Retrieved Matter . | . . . . Retrieved Components 2 | . . . 2 Parts Scanalyzed . | . . . . Part Schematics Acquired . | . . . . Parts Damaged . | . . . . Bothacking | -11 -10 -9 -8 ------------ Run | Yrd Mat Mat Mat Used RIF Installer . | . . . . Robots Hacked 3 | . . . 3 Non-combat 2 | . . . 2 Combat 1 | . . . 1 Robot Hacks Applied 5 | . . . 5 parse_system 2 | . . . 2 no_distress 3 | . . . 3 Relay Couplers Released . | . . . . Fabnet Peak Effective % . | . . . . Robots Rewired . | . . . . Allies Hacked . | . . . . Hacks Repelled . | . . . . Allies | -11 -10 -9 -8 -------- Run | Yrd Mat Mat Mat Total Allies . | . . . . Largest Group . | . . . . Highest-Rated Group . | . . . . Highest-Rated Ally . | . . . . Total Orders . | . . . . Ally Attacks . | . . . . Total Damage . | . . . . Kills . | . . . . Allies Corrupted . | . . . . Allies Melted . | . . . . Intel | -11 -10 -9 -8 ------- Run | Yrd Mat Mat Mat Robot Analysis Total . | . . . . Derelict Logs Recovered . | . . . . Drone Launches . | . . . . Drone Recoveries . | . . . . Exploration | -11 -10 -9 -8 ------------- Run | Yrd Mat Mat Mat Turns Passed 3444 | 343 477 700 1924 Spaces Moved 1724 | 207 285 400 832 Core 12 | 10 . . 2 Treads . | . . . . Legs 1712 | 197 285 400 830 Wheels . | . . . . Hover . | . . . . Flight . | . . . . Fastest Speed 50 | 50 120 120 113 Average Speed 139 | 116 120 120 161 Slowest Speed 500 | 120 120 120 500 Overloaded Moves . | . . . . Propulsion Burnouts . | . . . . Robots Hopped . | . . . . Cave-ins Triggered . | . . . . Exploration Rate (%) 25 | 7 30 26 40 Regions Visited 3 Branch Regions . Pre-discovered Areas . | . . . . Known Exits Taken . | . . . . Unknown Exits Taken 3 | 1 1 1 . Scrap Searched . | . . . . Spaces Dug 1 | . . 1 . Terrain Destroyed 8 | . 7 1 . Melee . | . . . . Projectile 1 | . . 1 . AOE 7 | . 7 . . Terrain Rammed . | . . . . Walls Destroyed . | . . . . Machines Disabled . | . . . . Actions | -11 -10 -9 -8 --------- Run | Yrd Mat Mat Mat Total 2354 | 256 345 562 1191 Wait 266 | 1 14 96 155 Move 1721 | 206 284 399 832 Hop . | . . . . Pick Up 32 | 7 1 8 16 Fast Attach 24 | 7 . 2 15 Attach 11 | . 1 4 6 Detach 3 | . . . 3 Swap 40 | 2 4 12 22 Drop 27 | . . 11 16 Fire 165 | 23 36 19 87 Melee 50 | . . 11 39 Ram . | . . . . Kick 15 | 10 5 . . Crush . | . . . . Escape Stasis . | . . . . Rewire . | . . . . Trap . | . . . . Miscellaneous . | . . . . Route ------- -11/Scrapyard -10/Materials -9/Materials -8/Materials History --------- Turn | Location | Event 10 | -11/Scrapyard | Discovered new exit (range 14) 344 | -11/Scrapyard | Entered Materials 345 | -10/Materials | Build established: Mutant 662 | -10/Materials | Discovered new exit (range 6) 821 | -10/Materials | Entered another Materials area 821 | -9/Materials | Evolved 2 slots: Propulsion x1, Weapon x1 1253 | -9/Materials | Build established: Scavenger-Mutant 1424 | -9/Materials | Discovered new exit (range 13) 1521 | -9/Materials | Entered another Materials area 1521 | -8/Materials | Evolved 2 slots: Power x1, Utility x1 1577 | -8/Materials | Build established: Mutant 1881 | -8/Materials | Lost 5 parts (2p1n1u1w) 2434 | -8/Materials | Core integrity fell below 50% 2562 | -8/Materials | Lost 8 parts (2p4n2w) 2840 | -8/Materials | Build established: Scavenger-Mutant 2877 | -8/Materials | Repaired Lgt. Nuclear Core 2918 | -8/Materials | Repaired Imp. Datajack 3182 | -8/Materials | Core integrity fell below 20% 3421 | -8/Materials | Build established: Mutant 3445 | -8/Materials | Destroyed by H-55 Commando with Gauss Rifle Last Messages --------------- 03395_ Slug penetrates Wall. 03397_ Lgt. Nuclear Core melted. 03397_ G-47 Trooper destroyed. 03399_ Electrolysis Chamber disabled. 03400_ Slug penetrates Wall. 03407_ G-47 Trooper destroyed. 03409_ Slug penetrates Wall. 03410_ Wall collapses. 03412_ Slug penetrates Wall. 03415_ Penetrated by Slug. 03421_ Slug penetrates Wall. 03422_ Particle Gun melted. 03422_ G-47 Trooper destroyed. 03425_ Acquired 10 matter. 03430_ Slug penetrates Door. 03431_ Dropped Particle Gun. 03433_ Penetrated by Slug. 03436_ K-01 Serf cleans the Pressure Siphon. 03440_ K-01 Serf collects debris. 03442_ Slug penetrates Wall. Map ----- +----------------------------------------------------+ | ?????????????????????????????????????????????????? | | ?????????????????????????????????????????????????? | | ?????????????????????????????????????????????????? | | ?????????????????????????????????????????????????? | | ?????????????????????????????????????????????????? | | ?????????????????????????????????????????????????? | | ??????????????????????????????????????????###????? | | ??????????????????????????????????????? | | ??????????????????????????????????????? ^ | | ??????????????????????????????????????? | | ??????????????????????????????????????????###????? | | ??????????????????????????????????? ?????????????? | | ?????????????????????????????????? #???????????? | | ??????????????????????????+####### ###?????????? | | ?????????????????????????? ?????????? | | ?????????????????????????? ?????????? | | ?????????????????????????? ??????????? | | ??????????????????????????# #???????????? | | ??????????????????????????# !== #???????????? | | ??????????????????????????# !== #???????????? | | ??????????????????????????# !== #???????????? | | ????????????????????####### #?####+###### | | ????????????????????# # #?? | | ????????????????????# """ # #???" """ | | ????????????????????# """ # +??"" """ | | ????????????????????# @#% """ # """ """ | | ????????????????????# ![#% """ # | | ????????????????????# =%;^%""" ###########+# | | ????????????????????# " #= """ | | ????????????????????# "" # | | ????????????????????# # | | ????????????????????# ### T"################# | | ????????????????????# "T" #?#####???????????????# | | ????????????????????# """ #?????????????????????# | | ????????????????????#######?????????????????????# | | ??????????????????????????????????????????????###+ | | ??????????????????????????????????????????????# | | ??????????????????????????????????????????????# " | | ??????????????????????????????????????????????# " | | ??????????????????????????????????????????????# " | | ??????????????????????????????????????????????# | | ??????????????????????????????????????????????# " | | ??????????????????????????????????????????????# " | | ??????????????????????????????????????????????# " | | ??????????????????????????????????????????????# | | ??????????????????????????????????????????????#### | | ????????????????????????????????????????????????# | | ??????????????????????????????????????????? | | ?????????????????????????????????????? | | ????????????????????????????????????? | +----------------------------------------------------+ Best States ------------- Heat Dissipation 45 Energy Generation 23 Energy Capacity 300 Matter Stores 300 Matter Capacity 300 Sight Range 16 Robot Scan Range 15 Terrain Scan Range 16 Terrain Scan Density 10 Armor Coverage 150 Evasion (%) 55 Item Schematics ----------------- None Robot Schematics ------------------ None Fabricated ------------ Nothing Alien Tech Used ----------------- None Achievements -------------- Novice Programmer Challenges ------------ None Game ------ Seed ServoNovaCharger Manual? 0 Play Time 00:34:00 Cumulative 7.5 hours Start 2025.05.05 @ 18:59:37 End 2025.05.05 @ 19:33:02 Sessions 1 Manual Loads 0 Difficulty Rogue Special Mode None Game No. 31 Rogue 31 Adventurer 0 Explorer 0 Win Type - Total 0 Types 0/0/0/0/0/0/0/0/0 Lore% 5 Gallery% 13 Achievement% 11 Wizard Run 0 Options --------- Layout 1 ASCII 0 Keyboard 1 Movement Numpad Keybinds 0 Fullscreen 1 Font 24/Smallcaps Map View 50x35 Zoom Use 0% Tactical HUD 1 Map Filters NONE Filters NONE Steam 1 RUN: 1a7fcd8c-2441-41ce-a18d-34e7d2fd2f5b